bitfinex-derivatives/quotes_SOLF0:USTF0_20240912
["timestamp","ask_amount","ask_price","bid_price","bid_amount"]
[1726154600600,3.3394,134.76,134.68,21.1213]
[1726154600790,2.1075,134.77,134.69,17.78]
[1726154600995,2.1075,134.77,134.72,3.3403]
[1726154601899,2.1075,134.77,134.73,3.76512601]
[1726154602390,2.1075,134.77,134.71,17.78]
[1726154603388,2.1075,134.77,134.71,21.1205]
[1726154604297,2.1075,134.77,134.71,17.78]
[1726154604497,2.0395,134.79,134.73,17.78]
[1726154604705,2.0395,134.79,134.73,21.56293855]
[1726154605608,2.0395,134.79,134.74,3.3397]
[1726154605788,4.4009,134.84,134.75,17.78]
[1726154605995,4.4009,134.84,134.76,3.3393]
[1726154606198,4.4009,134.84,134.75,17.78]
[1726154606496,4.4009,134.84,134.78,3.3388]
[1726154606702,4.4009,134.84,134.77,17.78]
[1726154606896,2.3455,134.84,134.77,17.78]
[1726154607104,2.3455,134.84,134.77,21.119]
[1726154607406,2.3455,134.84,134.77,17.78]
[1726154607811,2.3455,134.84,134.77,21.1191]
[1726154609306,2.3455,134.84,134.77,17.78]
[1726154609607,20.1255,134.84,134.74,2.2204]
[1726154609817,17.78,134.82,134.73,21.56293855]
[1726154610005,3.3386,134.8,134.73,3.78293855]
[1726154610307,3.3386,134.8,134.72,3.3403]
[1726154610504,3.3386,134.8,134.73,3.3401]
[1726154610899,5.5728,134.81,134.75,17.78]
[1726154611105,5.5728,134.81,134.74,3.3397]
[1726154612005,2.2346,134.81,134.75,3.3396]
[1726154612204,20.1255,134.84,134.73,21.55281495]
[1726154612400,20.1255,134.84,134.75,17.78]
[1726154612603,2.3455,134.84,134.77,21.1191]
[1726154613007,2.3455,134.84,134.77,17.78]
[1726154614008,2.3455,134.84,134.75,17.78]
[1726154614209,3.3377,134.83,134.75,17.78]
[1726154614806,3.3377,134.83,134.76,3.3392]
[1726154615505,3.3379,134.82,134.75,21.1195]
[1726154616016,3.3379,134.82,134.75,17.78]
[1726154616201,2.3455,134.84,134.75,17.78]
[1726154616619,3.338,134.82,134.75,21.1194]
[1726154616904,2.3455,134.84,134.75,17.78]
[1726154617200,3.3377,134.83,134.76,3.3393]
[1726154617399,2.3455,134.84,134.75,17.78]
[1726154618011,3.3377,134.83,134.76,3.3392]
[1726154620401,5.683,134.84,134.77,3.3391]
[1726154620596,5.683,134.84,134.75,17.78]
[1726154620811,2.3455,134.84,134.75,17.78]
[1726154621404,5.6829,134.84,134.77,3.339]
[1726154621714,2.3455,134.84,134.75,17.78]
[1726154622011,2.3455,134.84,134.77,17.78]
[1726154622414,2.3455,134.84,134.75,17.78]
[1726154623131,2.3455,134.84,134.78,21.1187]
[1726154623914,5.6829,134.84,134.77,3.339]
[1726154624407,2.3455,134.84,134.77,3.339]
[1726154624613,5.683,134.84,134.77,3.339]
[1726154625313,20.1255,134.84,134.74,3.8554]
[1726154625514,20.1255,134.84,134.74,2.3497]
[1726154625713,3.3385,134.8,134.73,21.55281495]
[1726154625912,17.78,134.82,134.73,3.77281495]
[1726154626114,2.2986,134.81,134.72,3.3403]
[1726154626311,2.2986,134.81,134.73,3.3401]
[1726154626506,2.2986,134.81,134.73,7.01082175]
[1726154626711,3.3387,134.79,134.71,17.78]
[1726154627715,3.3391,134.77,134.71,17.78]
[1726154627919,17.78,134.8,134.69,17.78]
[1726154628109,2.1863,134.79,134.69,17.78]
[1726154628310,3.339,134.78,134.7,3.3408]
[1726154628507,5.6952,134.78,134.7,3.3408]
[1726154628709,20.1362,134.78,134.68,2.2204]
[1726154629013,3.3396,134.76,134.68,5.5616]
[1726154629214,21.1196,134.76,134.68,5.5616]
[1726154629414,21.1196,134.76,134.68,2.2204]
[1726154630613,21.1196,134.76,134.68,5.5618]
[1726154631616,17.78,134.76,134.69,3.3411]
[1726154632517,3.3392,134.77,134.69,3.3411]
[1726154632721,23.4752,134.78,134.7,3.3409]
[1726154633106,20.1362,134.78,134.7,3.3409]
[1726154633521,21.1194,134.76,134.69,3.3411]
[1726154633715,17.78,134.76,134.67,17.78]
[1726154633916,17.78,134.74,134.66,3.63619486]
[1726154634215,17.78,134.74,134.64,17.78]
[1726154634427,17.78,134.72,134.6,6.5499]
[1726154634605,17.78,134.7,134.6,6.5499]
[1726154634818,17.78,134.7,134.6,2.4062]
[1726154635112,17.78,134.68,134.6,2.4062]
[1726154635322,17.78,134.68,134.61,3.3431]
[1726154635615,17.78,134.68,134.59,3.69458676]
[1726154635821,17.78,134.68,134.57,25.203]
[1726154635822,2.6073,134.67,134.57,17.78]
[1726154636310,2.6073,134.67,134.57,21.47804038]
[1726154636821,2.6073,134.67,134.6,3.3431]
[1726154637313,2.6073,134.67,134.59,17.78]
[1726154637516,2.6073,134.67,134.6,3.3433]
[1726154637911,2.6073,134.67,134.59,17.78]
[1726154638929,2.6073,134.67,134.61,3.343]
[1726154640018,2.6073,134.67,134.59,17.78]
[1726154640243,2.6073,134.67,134.62,3.3428]
[1726154641030,2.1855,134.69,134.63,3.3426]
[1726154641221,2.1855,134.69,134.61,17.78]
[1726154641421,5.5649,134.71,134.61,17.78]
[1726154641825,5.5649,134.71,134.63,17.78]
[1726154642722,5.5649,134.71,134.65,17.78]
[1726154642933,2.7178,134.73,134.65,21.55339572]
[1726154643137,2.7178,134.73,134.67,3.3415]
[1726154643431,2.7178,134.73,134.65,17.78]
[1726154643631,2.7178,134.73,134.65,21.56694138]
[1726154643930,2.7178,134.73,134.67,3.3416]
[1726154644234,21.1195,134.76,134.68,3.3412]
[1726154644438,21.1195,134.76,134.67,17.78]
[1726154644636,2.6416,134.77,134.67,17.78]
[1726154644935,2.6416,134.77,134.69,3.3409]
[1726154644936,3.3394,134.76,134.69,3.3409]
[1726154645135,2.6416,134.77,134.67,17.78]
[1726154645335,17.78,134.76,134.66,2.7287]
[1726154645933,17.78,134.73,134.65,3.78694138]
[1726154646127,17.78,134.73,134.64,17.78]
[1726154646630,21.1203,134.73,134.66,3.3418]
[1726154646833,5.2645,134.72,134.66,3.3418]
[1726154647029,5.2645,134.72,134.64,21.40981661]
[1726154647233,5.2645,134.72,134.65,3.342]
[1726154647234,8.6049,134.72,134.65,3.342]
[1726154647428,8.6049,134.72,134.64,21.40981661]
[1726154647739,8.6049,134.72,134.65,3.342]
[1726154648241,8.6049,134.72,134.64,21.40981661]
[1726154648422,5.2645,134.72,134.64,21.40981661]
[1726154648928,8.605,134.72,134.65,3.3419]
[1726154649835,3.3408,134.71,134.64,24.75211661]
[1726154650433,23.0445,134.72,134.63,3.3425]
[1726154650733,2.7063,134.71,134.63,3.3425]
[1726154650938,6.0471,134.71,134.64,7.0435662]
[1726154651130,6.0471,134.71,134.64,3.3422]
[1726154651331,2.7063,134.71,134.62,17.78]
[1726154651725,2.7063,134.71,134.65,3.342]
[1726154652035,2.7063,134.71,134.62,17.78]
[1726154652235,17.78,134.69,134.6,20.3864]
[1726154652633,2.7063,134.71,134.62,17.78]
[1726154652938,2.7063,134.71,134.64,3.3422]
[1726154653131,6.0471,134.71,134.65,3.67889499]
[1726154653331,2.7063,134.71,134.65,3.67889499]
[1726154653536,2.7063,134.71,134.62,17.78]
[1726154653933,2.7063,134.71,134.65,3.342]
[1726154654134,2.7063,134.71,134.65,3.75835437]
[1726154654443,2.7063,134.71,134.62,17.78]
[1726154654638,6.0471,134.71,134.64,3.3422]
[1726154654829,6.0471,134.71,134.65,3.69189068]
[1726154654830,2.7063,134.71,134.65,3.69189068]
[1726154655139,2.7063,134.71,134.62,17.78]
[1726154655641,6.047,134.71,134.64,3.3421]
[1726154655940,6.047,134.71,134.6,20.3864]
[1726154655941,2.7063,134.71,134.6,20.3864]
[1726154656539,2.7063,134.71,134.64,3.3423]
[1726154656738,2.7063,134.71,134.65,3.68409327]
[1726154657044,2.7063,134.71,134.62,17.78]
[1726154658238,5.2645,134.72,134.66,17.78]
[1726154658428,3.3398,134.75,134.68,17.78]
[1726154658655,17.78,134.78,134.68,17.78]
[1726154658836,3.3398,134.75,134.68,17.78]
[1726154659038,40.06,134.78,134.68,17.78]
[1726154659541,3.3396,134.76,134.69,3.3409]
[1726154661340,3.3391,134.77,134.68,17.78]
[1726154661642,17.78,134.78,134.68,17.78]
[1726154662443,3.3396,134.76,134.7,3.3407]
[1726154662743,17.78,134.78,134.7,3.3407]
[1726154663348,17.78,134.78,134.71,3.3406]
[1726154663546,3.3393,134.77,134.71,3.3406]
[1726154663948,17.78,134.78,134.7,3.3408]
[1726154664342,3.3394,134.76,134.7,3.3408]
[1726154665444,17.78,134.78,134.68,17.78]
[1726154666441,3.3393,134.77,134.71,3.3405]
[1726154667850,3.3393,134.77,134.68,17.78]
[1726154667851,21.119,134.78,134.72,3.3402]
[1726154668353,3.3392,134.77,134.72,3.3402]
[1726154668845,8.1038,134.79,134.7,17.78]
[1726154669051,11.4426,134.79,134.74,3.3398]
[1726154669255,8.1038,134.79,134.7,17.78]
[1726154669441,3.3389,134.78,134.73,3.34]
[1726154670242,3.3391,134.77,134.72,3.3403]
[1726154670446,17.78,134.78,134.68,17.78]
[1726154671549,3.3392,134.77,134.71,3.3404]
[1726154672855,3.339,134.78,134.72,3.3402]
[1726154673044,8.1038,134.79,134.68,17.78]
[1726154674147,3.3393,134.77,134.71,3.3405]
[1726154674346,17.78,134.78,134.68,17.78]
[1726154674750,3.3395,134.76,134.7,3.3408]
[1726154676749,3.3395,134.76,134.69,3.341]
[1726154677758,3.3395,134.76,134.7,3.3408]
[1726154678155,3.339,134.78,134.71,17.78]
[1726154678558,8.1038,134.79,134.71,17.78]
[1726154679158,11.4426,134.79,134.72,3.3402]
[1726154679756,8.1038,134.79,134.72,3.3402]
[1726154679959,3.339,134.78,134.72,3.3402]
[1726154681382,3.3392,134.77,134.71,21.1205]
[1726154681566,3.3392,134.77,134.71,3.3405]
[1726154682567,17.78,134.78,134.7,3.3408]
[1726154682957,17.78,134.78,134.68,17.78]
[1726154683159,3.339,134.78,134.71,3.3406]
[1726154684067,11.4426,134.79,134.7,17.78]
[1726154684465,11.4426,134.79,134.72,3.3402]
[1726154685266,11.4426,134.79,134.73,3.73469387]
[1726154685966,11.4426,134.79,134.73,7.07479387]
[1726154686569,3.339,134.78,134.72,3.3402]
[1726154686968,8.1038,134.79,134.72,3.3402]
[1726154687166,3.3393,134.77,134.71,3.3405]
[1726154687761,3.339,134.78,134.72,3.3403]
[1726154687957,8.1038,134.79,134.73,3.664564]
[1726154688168,8.1038,134.79,134.7,17.78]
[1726154689668,8.1038,134.79,134.73,3.34]
[1726154689871,8.1038,134.79,134.74,3.79183673]
[1726154690073,8.1038,134.79,134.74,15.19183673]
[1726154690269,5.3868,134.79,134.75,11.4]
[1726154690480,14.7382,134.81,134.75,15.10723562]
[1726154691174,14.7382,134.81,134.75,18.44683562]
[1726154692177,3.3382,134.81,134.75,7.04683562]
[1726154692376,3.3382,134.81,134.76,3.3393]
[1726154696286,3.338,134.82,134.75,3.70723562]
[1726154696474,17.81,134.84,134.74,17.81]
[1726154696788,17.81,134.84,134.74,21.50768477]
[1726154697381,3.338,134.82,134.77,3.339]
[1726154697785,8.1146,134.85,134.76,17.81]
[1726154697982,3.3375,134.84,134.76,17.81]
[1726154698178,8.1146,134.85,134.76,17.81]
[1726154698975,25.9246,134.85,134.76,17.81]
[1726154699887,25.9246,134.85,134.77,3.3391]
[1726154700386,3.3375,134.84,134.76,17.81]
[1726154700890,3.3377,134.83,134.73,24.6775]
[1726154701588,17.81,134.83,134.73,28.3524724]
[1726154701988,3.3382,134.81,134.75,3.3395]
[1726154702589,3.338,134.82,134.76,3.3394]
[1726154702791,25.9246,134.85,134.73,28.3524724]
[1726154703106,25.9246,134.85,134.75,17.81]
[1726154703493,8.1146,134.85,134.75,17.81]
[1726154703797,3.3374,134.84,134.78,3.3387]
[1726154704096,8.1146,134.85,134.75,17.81]
[1726154704291,11.4518,134.85,134.78,3.3387]
[1726154704503,8.7428,134.85,134.77,17.81]
[1726154704794,21.1468,134.87,134.8,3.3382]
[1726154704995,17.81,134.87,134.8,3.3382]
[1726154705395,3.3371,134.86,134.8,3.3382]
[1726154705695,17.81,134.87,134.79,3.3385]
[1726154705891,17.81,134.87,134.75,17.81]
[1726154706097,17.81,134.85,134.75,17.81]
[1726154706489,3.3379,134.83,134.77,3.3391]
[1726154707090,3.3379,134.83,134.78,3.3389]
[1726154707491,3.3379,134.83,134.75,17.81]
[1726154707688,3.338,134.82,134.76,3.3393]
[1726154708087,3.3378,134.83,134.76,3.3393]
[1726154708286,3.3378,134.83,134.73,28.3524724]
[1726154708693,3.3378,134.83,134.76,3.3392]
[1726154708892,3.3379,134.82,134.76,3.3392]
[1726154709087,2.6877,134.84,134.73,28.3524724]
[1726154709290,5.468,134.83,134.76,3.3394]
[1726154709685,5.468,134.83,134.73,31.6925724]
[1726154709686,23.278,134.83,134.73,31.6925724]
[1726154709887,23.278,134.83,134.73,28.3524724]
[1726154710196,23.278,134.83,134.75,3.3395]
[1726154710386,5.468,134.83,134.75,17.81]
[1726154710795,17.81,134.87,134.77,17.81]
[1726154710996,5.55,134.88,134.79,17.81]
[1726154711401,3.3367,134.87,134.8,3.3383]
[1726154711596,5.55,134.88,134.81,3.70752311]
[1726154712101,3.3371,134.86,134.81,3.70752311]
[1726154712790,5.55,134.88,134.79,3.3386]
[1726154712791,3.3372,134.85,134.79,3.3386]
[1726154712986,3.3372,134.85,134.8,3.67005089]
[1726154713188,17.81,134.87,134.77,17.81]
[1726154713595,2.6875,134.86,134.77,17.81]
[1726154714296,2.6875,134.86,134.73,10.5424724]
[1726154714297,17.81,134.85,134.75,17.81]
[1726154715007,3.3378,134.83,134.77,3.3391]
[1726154715296,21.54599881,134.83,134.73,28.3524724]
[1726154715486,3.3383,134.81,134.75,3.3396]
[1726154715689,3.3383,134.81,134.73,28.3524724]
[1726154715887,5.5501,134.82,134.73,28.3524724]
[1726154716092,5.5501,134.82,134.76,3.3394]
[1726154717188,2.7138,134.82,134.75,17.81]
[1726154717403,2.7138,134.82,134.73,10.5424724]
[1726154717404,20.51,134.85,134.77,17.81]
[1726154717911,3.3374,134.84,134.78,3.3388]
[1726154718088,14.7274,134.84,134.78,14.7288]
[1726154718496,11.39,134.84,134.78,14.7288]
[1726154718998,11.39,134.84,134.78,11.39]
[1726154719204,11.39,134.79,134.73,10.5424724]
[1726154719407,11.39,134.78,134.72,11.39]
[1726154719593,11.39,134.78,134.73,3.72496067]
[1726154720097,3.3388,134.79,134.73,3.72496067]
[1726154720298,17.82,134.79,134.68,27.1259]
[1726154720527,5.2577,134.78,134.68,19.7029]
[1726154720700,3.3393,134.77,134.7,3.3409]
[1726154721098,5.2577,134.78,134.68,19.7029]
[1726154721796,3.3394,134.77,134.69,3.3409]
[1726154722401,3.3394,134.76,134.69,3.3409]
[1726154724309,17.82,134.76,134.67,12.4605]
[1726154724503,17.82,134.72,134.61,9.3046]
[1726154724807,3.3409,134.71,134.64,10.7652]
[1726154724993,17.82,134.74,134.64,25.243]
[1726154725198,5.4066,134.73,134.64,25.243]
[1726154725408,5.4066,134.73,134.65,3.342]
[1726154725599,5.4066,134.73,134.64,25.243]
[1726154725802,3.3404,134.72,134.65,3.342]
[1726154725998,5.4066,134.73,134.64,25.243]
[1726154727010,8.7468,134.73,134.66,3.3418]
[1726154727310,5.4066,134.73,134.64,25.243]
[1726154727509,5.4066,134.73,134.67,3.3415]
[1726154727807,5.4066,134.73,134.68,3.76939639]
[1726154729207,5.4066,134.73,134.64,7.423]
[1726154729208,17.82,134.7,134.64,7.423]
[1726154729411,17.82,134.7,134.62,10.2311]
[1726154729614,21.161,134.7,134.62,13.5738]
[1726154730109,21.161,134.7,134.63,3.3426]
[1726154730321,3.341,134.7,134.63,3.3426]
[1726154730516,3.3407,134.71,134.62,31.82123883]
[1726154730941,17.82,134.72,134.65,3.3419]
[1726154731217,17.82,134.72,134.62,24.39823883]
[1726154731218,3.341,134.7,134.62,24.39823883]
[1726154731421,3.341,134.7,134.63,7.423]
[1726154731615,3.341,134.7,134.63,10.7655]
[1726154732411,3.341,134.7,134.63,3.3425]
[1726154733009,3.3411,134.69,134.63,3.3425]
[1726154733736,3.3414,134.68,134.62,3.77013883]
[1726154734340,17.82,134.69,134.62,3.77013883]
[1726154734530,5.5304,134.68,134.57,17.82]
[1726154734931,8.872,134.68,134.61,3.343]
[1726154735331,5.5304,134.68,134.61,3.65958172]
[1726154735531,20.6205,134.72,134.61,17.82]
[1726154735735,23.3504,134.72,134.61,21.49443542]
[1726154735935,8.8709,134.72,134.65,3.3421]
[1726154736338,8.8709,134.72,134.63,17.82]
[1726154736736,8.8709,134.72,134.66,3.3419]
[1726154737144,8.8709,134.72,134.63,17.82]
[1726154737445,8.8709,134.72,134.67,3.3416]
[1726154738245,23.3504,134.72,134.62,4.1494]
[1726154738749,3.3408,134.71,134.65,3.342]
[1726154738950,23.3504,134.72,134.65,3.342]
[1726154739342,3.3408,134.71,134.66,3.3419]
[1726154739940,3.3415,134.68,134.62,4.1494]
[1726154740141,17.82,134.7,134.61,3.67443542]
[1726154740342,17.82,134.71,134.6,2.7381]
[1726154740538,3.3413,134.69,134.63,3.3424]
[1726154740744,23.3504,134.72,134.61,17.82]
[1726154741145,17.82,134.7,134.61,17.82]
[1726154741348,3.3412,134.69,134.63,3.3426]
[1726154741744,45.6304,134.72,134.61,3.75278872]
[1726154741745,17.82,134.68,134.61,3.75278872]
[1726154741940,3.3417,134.67,134.61,3.343]
[1726154742147,3.3417,134.67,134.62,3.7334789]
[1726154742347,45.6304,134.72,134.6,2.7381]
[1726154742348,17.82,134.66,134.6,2.7381]
[1726154742553,17.82,134.66,134.61,3.74239113]
[1726154742952,21.1619,134.66,134.61,3.74239113]
[1726154743453,3.3426,134.63,134.58,3.75436381]
[1726154743650,17.82,134.64,134.53,17.82]
[1726154744047,21.1625,134.64,134.56,3.3442]
[1726154744461,21.1625,134.64,134.53,17.82]
[1726154744947,2.692,134.65,134.58,3.3438]
[1726154745149,2.692,134.65,134.58,7.13381708]
[1726154746546,6.0343,134.65,134.58,3.79001708]
[1726154746747,6.0343,134.65,134.57,21.1639]
[1726154746951,6.0343,134.65,134.57,3.3439]
[1726154747148,21.1625,134.64,134.58,3.68954758]
[1726154747350,17.82,134.64,134.56,3.3443]
[1726154747553,17.82,134.64,134.52,7.423]
[1726154747554,17.82,134.64,134.57,3.77312235]
[1726154747747,17.82,134.64,134.53,17.82]
[1726154747748,3.3428,134.63,134.53,17.82]
[1726154748254,17.82,134.62,134.51,2.5907]
[1726154748467,17.82,134.62,134.51,6.25313221]
[1726154748759,3.3436,134.59,134.51,24.07313221]
[1726154749058,17.82,134.6,134.52,3.3452]
[1726154749249,17.82,134.6,134.51,6.25313221]
[1726154749452,21.1635,134.6,134.51,6.25313221]
[1726154749655,21.1635,134.6,134.53,3.3449]
[1726154749955,17.82,134.6,134.51,6.25313221]
[1726154750565,2.7395,134.61,134.54,17.82]
[1726154751265,2.7395,134.61,134.52,17.82]
[1726154751456,6.0827,134.61,134.54,3.3447]
[1726154751649,2.7395,134.61,134.52,17.82]
[1726154752366,6.0828,134.61,134.54,3.3447]
[1726154752758,6.0828,134.61,134.52,17.82]
[1726154753657,6.0828,134.61,134.54,3.3448]
[1726154754862,3.3434,134.6,134.52,17.82]
[1726154755361,6.0827,134.61,134.54,3.3448]
[1726154755956,6.0827,134.61,134.52,17.82]
[1726154756562,6.0827,134.61,134.54,3.3448]
[1726154756962,3.3434,134.6,134.54,3.3448]
[1726154757362,2.7395,134.61,134.53,3.3451]
[1726154757561,3.3437,134.59,134.53,3.3451]
[1726154757870,5.323,134.61,134.53,3.3451]
[1726154758061,5.323,134.61,134.54,3.3447]
[1726154758260,3.3435,134.6,134.54,3.3447]
[1726154760267,8.6662,134.61,134.55,3.3446]
[1726154760569,17.82,134.58,134.51,6.25313221]
[1726154761369,17.82,134.56,134.51,3.66243221]
[1726154761665,17.82,134.56,134.48,25.243]
[1726154761862,17.82,134.56,134.51,3.3455]
[1726154762072,17.82,134.56,134.48,3.70912604]
[1726154762267,17.82,134.54,134.47,4.6325]
[1726154762459,17.82,134.54,134.47,8.39141795]
[1726154762860,17.82,134.54,134.49,3.346]
[1726154763158,17.82,134.54,134.47,8.39141795]
[1726154763757,46.42360083,134.6,134.47,8.39141795]
[1726154763758,17.82,134.56,134.49,3.3458]
[1726154764264,17.82,134.54,134.47,3.75891795]
[1726154764567,17.82,134.52,134.44,17.82]
[1726154764960,17.82,134.52,134.42,17.82]
[1726154765471,17.82,134.52,134.46,3.3467]
[1726154765661,17.82,134.52,134.46,7.09725762]
[1726154765861,17.82,134.52,134.46,3.3467]
[1726154766062,17.82,134.54,134.44,17.82]
[1726154766262,17.82,134.54,134.44,21.49063197]
[1726154766655,17.82,134.54,134.47,3.3464]
[1726154766860,17.82,134.52,134.47,3.3464]
[1726154767059,17.82,134.52,134.44,21.49063197]
[1726154767262,17.82,134.52,134.45,3.347]
[1726154767464,17.82,134.51,134.44,3.67063197]
[1726154767772,2.5858,134.5,134.4,32.1625]
[1726154767968,5.9318,134.5,134.43,3.3474]
[1726154768270,17.82,134.47,134.31,6.7012]
[1726154768565,17.82,134.47,134.36,25.258]
[1726154768761,17.82,134.47,134.38,17.82]
[1726154768963,17.82,134.47,134.38,3.7161559]
[1726154769267,2.811,134.49,134.33,6.7398]
[1726154769268,17.82,134.44,134.33,6.7398]
[1726154769569,2.811,134.49,134.36,17.82]
[1726154769570,17.82,134.47,134.36,17.82]
[1726154769865,17.82,134.47,134.38,17.82]
[1726154770063,17.82,134.47,134.38,21.61648914]
[1726154770455,17.82,134.47,134.42,3.3478]
[1726154770663,17.82,134.47,134.38,21.61648914]
[1726154771068,17.82,134.47,134.39,3.3485]
[1726154771267,17.82,134.47,134.38,3.79648914]
[1726154771568,17.82,134.47,134.33,14.1778]
[1726154771760,2.811,134.49,134.33,10.0136]
[1726154772068,17.82,134.41,134.33,2.5756]
[1726154772454,5.4672,134.4,134.31,21.57315985]
[1726154773365,5.4672,134.4,134.33,3.3499]
[1726154773569,17.82,134.39,134.31,21.57315985]
[1726154773865,8.2788,134.4,134.19,7.438]
[1726154774058,17.82,134.35,134.25,17.82]
[1726154774254,3.3486,134.39,134.31,3.3506]
[1726154774468,8.2788,134.4,134.31,17.82]
[1726154774670,8.2788,134.4,134.31,21.55381582]
[1726154774871,26.0988,134.4,134.31,3.73381582]
[1726154775162,26.0988,134.4,134.29,17.82]
[1726154775363,26.0988,134.4,134.32,3.3503]
[1726154775566,26.0988,134.4,134.31,17.82]
[1726154775760,8.2788,134.4,134.31,17.82]
[1726154776564,8.2788,134.4,134.37,3.3489]
[1726154776565,5.4672,134.4,134.37,3.3489]
[1726154776766,17.82,134.43,134.37,3.64532936]
[1726154776959,17.82,134.43,134.33,17.82]
[1726154777267,17.82,134.43,134.28,1.8893]
[1726154777467,26.1226,134.45,134.33,17.82]
[1726154777675,26.1226,134.45,134.35,17.82]
[1726154777861,26.1226,134.45,134.35,21.56618533]
[1726154778171,29.4699,134.45,134.35,21.56618533]
[1726154778870,26.1226,134.45,134.37,3.3489]
[1726154779067,17.82,134.43,134.35,3.74618533]
[1726154779260,17.82,134.43,134.33,17.82]
[1726154779465,29.80414761,134.45,134.28,1.8893]
[1726154779466,17.82,134.41,134.34,3.7016369]
[1726154779774,17.82,134.39,134.31,17.82]
[1726154780665,17.82,134.39,134.29,17.82]
[1726154780873,17.82,134.41,134.31,17.82]
[1726154781469,26.1226,134.45,134.35,17.82]
[1726154781672,26.1226,134.45,134.35,21.44909226]
[1726154782187,17.82,134.42,134.33,17.82]
[1726154782371,17.82,134.42,134.34,3.74041824]
[1726154783270,26.1226,134.45,134.33,17.82]
[1726154783775,17.82,134.43,134.37,3.3489]
[1726154784072,17.82,134.43,134.36,3.64329835]
[1726154784274,17.82,134.43,134.36,3.3493]
[1726154784475,17.82,134.43,134.36,7.15148798]
[1726154784773,17.82,134.43,134.37,3.3491]
[1726154784976,26.1226,134.45,134.33,17.82]
[1726154785579,3.3479,134.42,134.35,3.3494]
[1726154785783,17.82,134.42,134.35,3.7394914]
[1726154786073,17.82,134.42,134.33,17.82]
[1726154786266,17.82,134.42,134.36,3.3492]
[1726154786773,21.1675,134.44,134.36,3.3491]
[1726154786981,17.82,134.44,134.35,3.76963059]
[1726154787276,17.82,134.44,134.33,17.82]
[1726154787473,3.3478,134.43,134.35,3.3494]
[1726154787678,3.3478,134.43,134.35,3.77037476]
[1726154787876,3.3478,134.43,134.33,17.82]
[1726154788376,21.1678,134.43,134.36,3.3492]
[1726154788585,21.1678,134.43,134.36,7.06403851]
[1726154788776,3.3478,134.43,134.36,3.3492]
[1726154789077,3.3478,134.43,134.33,17.82]
[1726154789480,3.3478,134.43,134.29,7.438]
[1726154789481,17.82,134.42,134.34,3.3498]
[1726154789674,17.82,134.42,134.34,3.67614228]
[1726154789878,17.82,134.42,134.3,25.258]
[1726154790279,17.82,134.42,134.31,1.36738702]
[1726154790585,34.39887771,134.45,134.32,17.82]
[1726154790779,17.82,134.43,134.32,17.82]
[1726154791095,8.3026,134.45,134.38,3.3486]
[1726154791381,8.3026,134.45,134.39,3.63446941]
[1726154791681,8.3026,134.45,134.4,17.82]
[1726154791873,5.517,134.45,134.4,21.53112929]
[1726154792378,5.517,134.45,134.41,3.3479]
[1726154793077,5.517,134.45,134.4,7.05932929]